fUSD/lending_fUSD_20250405
["ID","MTS","AMOUNT","RATE_DAILY","PERIOD"]
[357185074,1743871855887,-511.23,0.00030684,2]
[357185075,1743871855896,-617.12,0.00030684,2]
[357185076,1743871855906,-929.13,0.00030684,2]
[357185077,1743871855915,-608.39600694,0.00030684,2]
[357185078,1743871855924,-500.0,0.00030684,2]
[357185079,1743871855933,-500.0,0.00030684,2]
[357185080,1743871855942,-500.0,0.00030684,2]
[357185081,1743871855951,-2394.43,0.00030684,2]
[357185082,1743871855961,-500.0,0.00030684,2]
[357185083,1743871855970,-500.0,0.00030684,2]
[357185084,1743871855979,-500.0,0.00030684,2]
[357185085,1743871855989,-500.0,0.00030684,2]
[357185086,1743871855998,-500.0,0.00030684,2]
[357185087,1743871856007,-500.0,0.00030684,2]
[357185088,1743871856017,-199.66565074,0.00030684,2]
[357185089,1743871856027,-20826.04,0.00030684,2]
[357185090,1743871856037,-621.22181743,0.00030684,2]
[357185091,1743871856046,-1582.99,0.00030684,2]
[357185092,1743871856055,-500.0,0.00030684,2]
[357185093,1743871856064,-500.0,0.00030684,2]
[357185094,1743871856074,-500.0,0.00030684,2]
[357185095,1743871856084,-500.0,0.00030684,2]
[357185096,1743871856093,-500.0,0.00030684,2]
[357185097,1743871856102,-500.0,0.00030684,2]
[357185098,1743871856112,-500.0,0.00030684,2]
[357185099,1743871856121,-410.08,0.00030754,2]
[357185100,1743871856130,-1600.0,0.000309,11]
[357185101,1743871856139,-500.0,0.00030947,2]
[357185102,1743871856149,-1088.49,0.00030947,2]
[357185103,1743871856158,-500.0,0.00030957,2]
[357185104,1743871856167,-500.0,0.00030957,2]
[357185105,1743871856177,-500.0,0.00030958,2]
[357185106,1743871856187,-1054.39,0.00030958,2]
[357185107,1743871856195,-500.0,0.00030958,2]
[357185108,1743871856205,-165.8073661,0.00030958,2]
[357185109,1743871856214,-500.0,0.00030958,2]
[357185110,1743871856223,-500.0,0.00030958,2]
[357185111,1743871856232,-632.32206233,0.00030958,2]
[357185112,1743871856241,-500.0,0.00030958,2]
[357185113,1743871856250,-500.0,0.00030958,2]
[357185114,1743871856259,-500.0,0.00030958,2]
[357185115,1743871856269,-500.0,0.00030958,2]
[357185116,1743871856279,-500.0,0.00030958,2]
[357185117,1743871856288,-815.78,0.00030958,2]
[357185118,1743871856300,-500.0,0.00030958,2]
[357185119,1743871856309,-500.0,0.00030958,2]
[357185120,1743871856319,-546.4,0.00030958,2]
[357185121,1743871856328,-500.0,0.00030958,2]
[357185122,1743871856337,-1733.42,0.00030958,2]
[357185123,1743871856347,-500.0,0.00030958,2]
[357185124,1743871856356,-500.0,0.00030958,2]
[357185125,1743871856366,-500.0,0.00030958,2]
[357185126,1743871856377,-2000.0,0.00030958,2]
[357185127,1743871856387,-500.0,0.00030958,2]
[357185128,1743871856396,-540.73,0.00030958,2]
[357185129,1743871856405,-500.0,0.00030958,2]
[357185130,1743871856415,-500.0,0.00030958,2]
[357185131,1743871856425,-1151.97,0.00030958,2]
[357185132,1743871856434,-781.09,0.00030958,2]
[357185133,1743871856444,-619.11,0.00030958,2]
[357185134,1743871856454,-1004.02,0.00030958,2]
[357185135,1743871856464,-645.38,0.00030958,2]
[357185136,1743871856476,-500.0,0.00030958,2]
[357185137,1743871856486,-500.0,0.00030958,2]
[357185138,1743871856496,-500.0,0.00030958,2]
[357185139,1743871856505,-519.04,0.00030958,2]
[357185140,1743871856515,-500.0,0.00030958,2]
[357185141,1743871856525,-500.0,0.00030958,2]
[357185142,1743871856534,-500.0,0.00030958,2]
[357185143,1743871856544,-500.0,0.00030958,2]
[357185144,1743871856554,-500.0,0.00030958,2]
[357185145,1743871856564,-316.12754437,0.00030958,2]
[357185146,1743871856574,-500.0,0.00030958,2]
[357185147,1743871856584,-500.0,0.00030958,2]
[357185148,1743871856594,-891.95,0.00030958,2]
[357185149,1743871856603,-500.0,0.00030958,2]
[357185150,1743871856613,-2752.19,0.00030958,2]
[357185151,1743871856622,-1592.16,0.00030958,2]
[357185152,1743871856632,-857.66,0.00030958,2]
[357185153,1743871856641,-809.97,0.00030958,2]
[357185154,1743871856651,-500.0,0.00030958,2]
[357185155,1743871856660,-601.58,0.00030958,2]
[357185156,1743871856669,-2922.39,0.00030958,2]
[357185157,1743871856679,-1083.85,0.00030958,2]
[357185158,1743871856689,-500.0,0.00030958,2]
[357185159,1743871856699,-500.0,0.00030958,2]
[357185160,1743871856708,-500.0,0.00030958,2]
[357185161,1743871856720,-500.0,0.00030958,2]
[357185162,1743871856729,-299.69070288,0.00030958,2]
[357185163,1743871856739,-500.0,0.00030958,2]
[357185164,1743871856748,-175.79735363,0.00030958,2]
[357185165,1743871856758,-500.0,0.00030958,2]
[357185166,1743871856769,-387.50359568,0.00030958,2]
[357185167,1743871856778,-500.0,0.00030958,2]
[357185168,1743871856788,-1033.3,0.00030958,2]
[357185169,1743871856798,-304.35367008,0.00030958,2]
[357185170,1743871856808,-221.92726227,0.00030958,2]
[357185171,1743871856818,-500.0,0.00030958,2]
[357185172,1743871856827,-500.0,0.00030958,2]
[357185173,1743871856836,-151.0,0.00030958,7]
[357185174,1743871856846,-500.0,0.00030958,2]
[357185175,1743871856855,-151.0,0.00030958,7]
[357185176,1743871856865,-500.0,0.00030958,2]
[357185177,1743871856875,-543.71,0.00030958,2]
[357185178,1743871856884,-500.0,0.00030958,2]
[357185179,1743871856895,-500.0,0.00030958,2]
[357185180,1743871856904,-500.0,0.00030958,2]
[357185181,1743871856914,-151.0,0.00030958,7]
[357185182,1743871856925,-500.0,0.00030958,2]
[357185183,1743871856936,-151.0,0.00030958,7]
[357185184,1743871856946,-629.89217024,0.00030958,2]
[357185185,1743871856956,-298.78042356,0.00030958,2]
[357185186,1743871856966,-500.0,0.00030958,2]
[357185187,1743871856975,-1172.11,0.00030958,2]
[357185188,1743871856985,-500.0,0.00030958,2]
[357185189,1743871856994,-151.667315,0.00030958,7]
[357185190,1743871857004,-500.0,0.00030958,2]
[357185191,1743871857014,-334.09845945,0.00030958,2]
[357185192,1743871857024,-500.0,0.00030958,2]
[357185193,1743871857035,-500.0,0.00030958,2]
[357185194,1743871857045,-500.0,0.00030958,2]
[357185195,1743871857055,-500.0,0.00030958,2]
[357185196,1743871857064,-500.05976109,0.00030958,2]
[357185197,1743871857074,-279.82297442,0.00030958,2]
[357185198,1743871857083,-494.1365679,0.00030958,2]
[357185199,1743871857093,-500.0,0.00030958,2]
[357185200,1743871857103,-750.61,0.00030958,2]
[357185201,1743871857112,-151.0,0.00030958,7]
[357185202,1743871857122,-151.0,0.00030958,7]
[357185203,1743871857131,-500.0,0.00030958,2]
[357185204,1743871857140,-540.58,0.00030958,2]
[357185205,1743871857149,-500.0,0.00030958,2]
[357185206,1743871857159,-500.0,0.00030958,2]
[357185207,1743871857168,-155.610329,0.00030958,7]
[357185208,1743871857177,-500.0,0.00030958,2]
[357185209,1743871857187,-500.0,0.00030958,2]
[357185210,1743871857197,-500.0,0.00030958,2]
[357185211,1743871857206,-500.0,0.00030958,2]
[357185212,1743871857215,-1037.47,0.00030958,2]
[357185213,1743871857225,-500.0,0.00030958,2]
[357185214,1743871857234,-500.0,0.00030958,2]
[357185215,1743871857354,-151.0,0.00030958,7]
[357185216,1743871857364,-151.0,0.00030958,7]
[357185217,1743871857376,-500.0,0.00030958,2]
[357185218,1743871857386,-500.0,0.00030958,2]
[357185219,1743871857397,-151.0,0.00030958,7]
[357185220,1743871857406,-500.0,0.00030958,2]
[357185221,1743871857415,-598.96873022,0.00030958,2]
[357185222,1743871857425,-151.0,0.00030958,7]
[357185223,1743871857434,-501.49,0.00030958,2]
[357185224,1743871857443,-500.0,0.00030958,2]
[357185225,1743871857453,-500.0,0.00030958,2]
[357185226,1743871857462,-500.0,0.00030958,2]
[357185227,1743871857473,-500.0,0.00030958,2]
[357185228,1743871857484,-673.21,0.00030958,2]
[357185229,1743871857495,-151.0,0.00030958,7]
[357185230,1743871857504,-500.0,0.00030958,2]
[357185231,1743871857514,-500.0,0.00030958,2]
[357185232,1743871857523,-151.0,0.00030958,7]
[357185233,1743871857533,-500.0,0.00030958,2]
[357185234,1743871857543,-151.0,0.00030958,7]
[357185235,1743871857552,-845.57,0.00030958,2]
[357185236,1743871857562,-2904.460534,0.00030958,7]
[357185237,1743871857571,-563.87776121,0.00030958,2]
[357185238,1743871857581,-274.42803989,0.00030958,2]
[357185239,1743871857590,-543.39,0.00030958,2]
[357185240,1743871857599,-500.0,0.00030958,2]
[357185241,1743871857608,-500.0,0.00030958,2]
[357185242,1743871857618,-370.24875043,0.00030958,2]
[357185243,1743871857627,-500.0,0.00030958,2]
[357185244,1743871857637,-500.0,0.00030958,2]
[357185245,1743871857646,-2562.27,0.00030958,2]
[357185246,1743871857655,-500.0,0.00030958,2]
[357185247,1743871857664,-151.0,0.00030958,7]
[357185248,1743871857674,-695.81,0.00030958,2]
[357185249,1743871857683,-177.05530148,0.00030958,2]
[357185250,1743871857692,-151.0,0.00030958,7]
[357185251,1743871857701,-500.0,0.00030958,2]
[357185252,1743871857711,-256.37531023,0.00030958,2]
[357185253,1743871857721,-500.0,0.00030958,2]
[357185254,1743871857730,-151.0,0.00030958,7]
[357185255,1743871857739,-500.0,0.00030958,2]
[357185256,1743871857748,-151.0,0.00030958,7]
[357185257,1743871857757,-338.77764217,0.00030958,2]
[357185258,1743871857766,-757.7,0.00030958,2]
[357185259,1743871857775,-500.0,0.00030958,2]
[357185260,1743871857784,-500.0,0.00030958,2]
[357185261,1743871857793,-515.79,0.00030958,2]
[357185262,1743871857802,-481.02846417,0.00030958,2]
[357185263,1743871857811,-200.0,0.00030958,2]
[357185264,1743871857821,-871.31,0.00030958,2]
[357185265,1743871857831,-500.0,0.00030958,2]
[357185266,1743871857840,-500.0,0.00030958,2]
[357185267,1743871857851,-939.25,0.00030958,2]
[357185268,1743871857862,-151.0,0.00030958,7]
[357185269,1743871857871,-269.02595406,0.00030958,2]
[357185270,1743871857881,-500.0,0.00030958,2]
[357185271,1743871857895,-500.0,0.00030958,2]
[357185272,1743871857904,-500.0,0.00030958,2]
[357185273,1743871857914,-629.48,0.00030958,2]
[357185274,1743871857924,-500.0,0.00030958,2]
[357185275,1743871857934,-412.95455441,0.00030958,2]
[357185276,1743871857943,-500.0,0.00030958,2]
[357185277,1743871857953,-151.0,0.00030958,7]
[357185278,1743871857962,-783.62,0.00030958,2]
[357185279,1743871857972,-500.0,0.00030958,2]
[357185280,1743871857981,-500.0,0.00030958,2]
[357185281,1743871857990,-561.1,0.00030958,2]
[357185282,1743871858001,-217.36633884,0.00030958,2]
[357185283,1743871858011,-382.555943,0.00030958,7]
[357185284,1743871858020,-673.31,0.00030958,2]
[357185285,1743871858029,-500.0,0.00030958,2]
[357185286,1743871858039,-1406.55,0.00030958,2]
[357185287,1743871858048,-382.555943,0.00030958,7]
[357185288,1743871858058,-639.85800621,0.00030958,2]
[357185289,1743871858067,-500.0,0.00030958,2]
[357185290,1743871858076,-353.5716189,0.00030958,2]
[357185291,1743871858086,-500.0,0.00030958,2]
[357185292,1743871858095,-17329.31,0.00030958,2]
[357185293,1743871858105,-510.25,0.00030958,2]
[357185294,1743871858114,-151.0,0.00030958,7]
[357185295,1743871858123,-564.82785834,0.00030958,2]
[357185296,1743871858133,-500.0,0.00030958,2]
[357185297,1743871858142,-169.40311619,0.00030958,2]
[357185298,1743871858152,-1195.62,0.00030958,2]
[357185299,1743871858161,-1437.78,0.00030958,2]
[357185300,1743871858170,-500.0,0.00030958,2]
[357185301,1743871858179,-591.8857068,0.00030958,2]
[357185302,1743871858189,-500.0,0.00030958,2]
[357185303,1743871858198,-600.12,0.00030958,2]
[357185304,1743871858207,-500.0,0.00030958,2]
[357185305,1743871858216,-718.29,0.00030958,2]
[357185306,1743871858225,-500.0,0.00030958,2]
[357185307,1743871858235,-645.64,0.00030958,2]
[357185308,1743871858245,-500.0,0.00030958,2]
[357185309,1743871858254,-971.91,0.00030958,2]
[357185310,1743871858264,-500.0,0.00030958,2]
[357185311,1743871858277,-500.0,0.00030958,2]
[357185312,1743871858287,-173.52936099,0.00030958,2]
[357185313,1743871858299,-754.3,0.00030958,2]
[357185314,1743871858309,-1006.43,0.00030958,2]
[357185315,1743871858319,-488.05094689,0.00030958,2]
[357185316,1743871858329,-500.0,0.00030958,2]
[357185317,1743871858339,-151.0,0.00030958,7]
[357185318,1743871858348,-215.68932741,0.00030958,2]
[357185319,1743871858358,-602.67,0.00030958,2]
[357185320,1743871858368,-822.78,0.00030958,2]
[357185321,1743871858379,-8628.17,0.00030958,2]
[357185322,1743871858389,-500.0,0.00030958,2]
[357185323,1743871858399,-11180.84,0.00030958,2]
[357185324,1743871858408,-500.0,0.00030958,2]
[357185325,1743871858418,-640.66,0.00030958,2]
[357185326,1743871858427,-500.0,0.00030958,2]
[357185327,1743871858437,-5048.56,0.00030958,2]
[357185328,1743871858447,-511.23,0.00030958,2]
[357185329,1743871858457,-617.12,0.00030958,2]
[357185330,1743871858468,-929.13,0.00030958,2]
[357185331,1743871858477,-151.0,0.00030958,7]
[357185332,1743871858487,-547.48290715,0.00030958,2]
[357185333,1743871858497,-500.0,0.00030958,2]
[357185334,1743871858507,-554.6649509,0.00030958,2]
[357185335,1743871858516,-151.0,0.00030958,7]
[357185336,1743871858526,-2394.43,0.00030958,2]
[357185337,1743871858535,-500.0,0.00030958,2]
[357185338,1743871858545,-500.0,0.00030958,2]
[357185339,1743871858555,-500.0,0.00030958,2]
[357185340,1743871858564,-500.0,0.00030958,2]
[357185341,1743871858573,-500.0,0.00030958,2]
[357185342,1743871858583,-500.0,0.00030958,2]
[357185343,1743871858593,-20826.04,0.00030958,2]
[357185344,1743871858602,-1582.99,0.00030958,2]
[357185345,1743871858611,-500.0,0.00030958,2]
[357185346,1743871858621,-151.585526,0.00030958,7]
[357185347,1743871858630,-187.073608,0.00030958,7]
[357185348,1743871858640,-246.36014356,0.00030958,2]
[357185349,1743871858649,-240.70161286,0.00030958,2]
[357185350,1743871858658,-500.0,0.00030958,2]
[357185351,1743871858668,-187.073608,0.00030958,7]
[357185352,1743871858677,-358.8342151,0.00030958,2]
[357185353,1743871858686,-500.0,0.00030958,2]
[357185354,1743871858695,-151.759823,0.00030958,7]
[357185355,1743871858704,-508.86409943,0.00030958,2]
[357185356,1743871858713,-550.0,0.00031,2]
[357185357,1743871858723,-5706.68191713,0.00031072,2]
[357185358,1743871858732,-2217.60395128,0.00031109,2]
[357185359,1743871858741,-158.45158,0.0003111,47]
[357185360,1743871858750,-556.20784256,0.00031231,2]
[357185361,1743871858759,-1088.49,0.00031231,2]
[357185362,1743871858769,-500.0,0.00031231,2]
[357185363,1743871858778,-500.0,0.00031231,2]
[357185364,1743871858787,-500.0,0.00031232,2]
[357185365,1743871858796,-1054.39,0.00031232,2]
[357185366,1743871858805,-521.57626164,0.00031232,2]
[357185367,1743871858814,-500.0,0.00031232,2]
[357185368,1743871858823,-500.0,0.00031232,2]
[357185369,1743871858833,-500.0,0.00031232,2]
[357185370,1743871858842,-500.0,0.00031232,2]
[357185371,1743871858852,-500.0,0.00031232,2]
[357185372,1743871858861,-500.0,0.00031232,2]
[357185373,1743871858870,-496.32738458,0.00031232,2]
[357185374,1743871858879,-815.78,0.00031232,2]
[357185375,1743871858888,-550.94411657,0.00031232,2]
[357185376,1743871858898,-500.0,0.00031232,2]
[357185377,1743871858907,-546.4,0.00031232,2]
[357185378,1743871858916,-625.41668502,0.00031232,2]
[357185379,1743871858925,-1733.42,0.00031232,2]
[357185380,1743871858934,-500.0,0.00031232,2]
[357185381,1743871858943,-500.0,0.00031232,2]
[357185382,1743871858952,-500.0,0.00031232,2]
[357185383,1743871858961,-2000.0,0.00031232,2]
[357185384,1743871858970,-500.0,0.00031232,2]
[357185385,1743871858979,-540.73,0.00031232,2]
[357185386,1743871858989,-500.0,0.00031232,2]
[357185387,1743871858998,-500.0,0.00031232,2]
[357185388,1743871859008,-1151.97,0.00031232,2]
[357185389,1743871859017,-781.09,0.00031232,2]
[357185390,1743871859026,-619.11,0.00031232,2]
[357185391,1743871859035,-1004.02,0.00031232,2]
[357185392,1743871859044,-645.38,0.00031232,2]
[357185393,1743871859054,-200.65189698,0.00031232,2]
[357185394,1743871859063,-500.0,0.00031232,2]
[357185395,1743871859072,-500.0,0.00031232,2]
[357185396,1743871859082,-519.04,0.00031232,2]
[357185397,1743871859091,-500.0,0.00031232,2]
[357185398,1743871859100,-479.06255153,0.00031232,2]
[357185399,1743871859110,-500.0,0.00031232,2]
[357185400,1743871859119,-500.0,0.00031232,2]
[357185401,1743871859129,-500.0,0.00031232,2]
[357185402,1743871859139,-500.0,0.00031232,2]
[357185403,1743871859148,-500.0,0.00031232,2]
[357185404,1743871859157,-891.95,0.00031232,2]
[357185405,1743871859166,-500.0,0.00031232,2]
[357185406,1743871859176,-2752.19,0.00031232,2]
[357185407,1743871859185,-1592.16,0.00031232,2]
[357185408,1743871859194,-857.66,0.00031232,2]
[357185409,1743871859203,-809.97,0.00031232,2]
[357185410,1743871859213,-573.65873985,0.00031232,2]
[357185411,1743871859222,-601.58,0.00031232,2]
[357185412,1743871859231,-2922.39,0.00031232,2]
[357185413,1743871859240,-1083.85,0.00031232,2]
[357185414,1743871859249,-500.0,0.00031232,2]
[357185415,1743871859259,-500.0,0.00031232,2]
[357185416,1743871859268,-500.0,0.00031232,2]
[357185417,1743871859278,-151.0,0.00031232,7]
[357185418,1743871859287,-500.0,0.00031232,2]
[357185419,1743871859299,-500.0,0.00031232,2]
[357185420,1743871859309,-500.0,0.00031232,2]
[357185421,1743871859319,-151.0,0.00031232,7]
[357185422,1743871859328,-151.0,0.00031232,7]
[357185423,1743871859338,-586.00904635,0.00031232,2]
[357185424,1743871859348,-1033.3,0.00031232,2]
[357185425,1743871859357,-500.0,0.00031232,2]
[357185426,1743871859366,-500.0,0.00031232,2]
[357185427,1743871859375,-500.0,0.00031232,2]
[357185428,1743871859385,-357.18256731,0.00031232,2]
[357185429,1743871859394,-543.71,0.00031232,2]
[357185430,1743871859404,-500.0,0.00031232,2]
[357185431,1743871859413,-500.0,0.00031232,2]
[357185432,1743871859423,-500.0,0.00031232,2]
[357185433,1743871859432,-500.0,0.00031232,2]
[357185434,1743871859441,-295.76946403,0.00031232,2]
[357185435,1743871859451,-1172.11,0.00031232,2]
[357185436,1743871859460,-500.0,0.00031232,2]
[357185437,1743871859469,-184.22035274,0.00031232,2]
[357185438,1743871859479,-261.13166763,0.00031232,2]
[357185439,1743871859488,-500.0,0.00031232,2]
[357185440,1743871859498,-500.0,0.00031232,2]
[357185441,1743871859508,-500.0,0.00031232,2]
[357185442,1743871859517,-500.0,0.00031232,2]
[357185443,1743871859526,-750.61,0.00031232,2]
[357185444,1743871859535,-500.0,0.00031232,2]
[357185445,1743871859544,-540.58,0.00031232,2]
[357185446,1743871859553,-500.0,0.00031232,2]
[357185447,1743871859563,-500.0,0.00031232,2]
[357185448,1743871859572,-500.0,0.00031232,2]
[357185449,1743871859581,-500.0,0.00031232,2]
[357185450,1743871859592,-500.0,0.00031232,2]
[357185451,1743871859601,-500.0,0.00031232,2]
[357185452,1743871859610,-1037.47,0.00031232,2]
[357185453,1743871859619,-493.82309319,0.00031232,2]
[357185454,1743871859628,-500.0,0.00031232,2]
[357185455,1743871859638,-500.0,0.00031232,2]
[357185456,1743871859647,-500.0,0.00031232,2]
[357185457,1743871859657,-500.0,0.00031232,2]
[357185458,1743871859666,-501.49,0.00031232,2]
[357185459,1743871859675,-500.0,0.00031232,2]
[357185460,1743871859684,-500.0,0.00031232,2]
[357185461,1743871859694,-500.0,0.00031232,2]
[357185462,1743871859704,-500.0,0.00031232,2]
[357185463,1743871859715,-673.21,0.00031232,2]
[357185464,1743871859724,-500.0,0.00031232,2]
[357185465,1743871859733,-500.0,0.00031232,2]
[357185466,1743871859743,-500.0,0.00031232,2]
[357185467,1743871859752,-845.57,0.00031232,2]
[357185468,1743871859761,-543.39,0.00031232,2]
[357185469,1743871859771,-415.22733252,0.00031232,2]
[357185470,1743871859780,-414.34754281,0.00031232,2]
[357185471,1743871859789,-500.0,0.00031232,2]
[357185472,1743871859798,-2562.27,0.00031232,2]
[357185473,1743871859807,-500.0,0.00031232,2]
[357185474,1743871859816,-500.0,0.00031232,2]
[357185475,1743871859826,-695.81,0.00031232,2]
[357185476,1743871859835,-500.0,0.00031232,2]
[357185477,1743871859844,-500.0,0.00031232,2]
[357185478,1743871859853,-397.27665779,0.00031232,2]
[357185479,1743871859862,-757.7,0.00031232,2]
[357185480,1743871859872,-500.0,0.00031232,2]
[357185481,1743871859992,-500.0,0.00031232,2]
[357185482,1743871860002,-515.79,0.00031232,2]
[357185483,1743871860012,-292.87577192,0.00031232,2]
[357185484,1743871860021,-871.31,0.00031232,2]
[357185485,1743871860030,-510.84739831,0.00031232,2]
[357185486,1743871860040,-500.0,0.00031232,2]
[357185487,1743871860050,-939.25,0.00031232,2]
[357185488,1743871860060,-500.0,0.00031232,2]
[357185489,1743871860069,-500.0,0.00031232,2]
[357185490,1743871860080,-500.0,0.00031232,2]
[357185491,1743871860089,-629.48,0.00031232,2]
[357185492,1743871860099,-524.76005715,0.00031232,2]
[357185493,1743871860108,-500.0,0.00031232,2]
[357185494,1743871860118,-783.62,0.00031232,2]
[357185495,1743871860128,-500.0,0.00031232,2]
[357185496,1743871860137,-500.0,0.00031232,2]
[357185497,1743871860147,-561.1,0.00031232,2]
[357185498,1743871860156,-673.31,0.00031232,2]
[357185499,1743871860166,-523.8270136,0.00031232,2]
[357185500,1743871860175,-1406.55,0.00031232,2]
[357185501,1743871860184,-500.0,0.00031232,2]
[357185502,1743871860193,-280.9367167,0.00031232,2]
[357185503,1743871860203,-17329.31,0.00031232,2]
[357185504,1743871860212,-510.25,0.00031232,2]
[357185505,1743871860222,-500.0,0.00031232,2]
[357185506,1743871860232,-1195.62,0.00031232,2]
[357185507,1743871860242,-1437.78,0.00031232,2]
[357185508,1743871860251,-500.0,0.00031232,2]
[357185509,1743871860262,-500.0,0.00031232,2]
[357185510,1743871860271,-600.12,0.00031232,2]
[357185511,1743871860280,-215.86903091,0.00031232,2]
[357185512,1743871860290,-718.29,0.00031232,2]
[357185513,1743871860303,-603.34734769,0.00031232,2]
[357185514,1743871860313,-645.64,0.00031232,2]
[357185515,1743871860323,-523.74182694,0.00031232,2]
[357185516,1743871860333,-971.91,0.00031232,2]
[357185517,1743871860343,-500.0,0.00031232,2]
[357185518,1743871860353,-500.0,0.00031232,2]
[357185519,1743871860362,-754.3,0.00031232,2]
[357185520,1743871860372,-1006.43,0.00031232,2]
[357185521,1743871860382,-500.0,0.00031232,2]
[357185522,1743871860393,-602.67,0.00031232,2]
[357185523,1743871860403,-822.78,0.00031232,2]
[357185524,1743871860412,-8628.17,0.00031232,2]
[357185525,1743871860421,-500.0,0.00031232,2]
[357185526,1743871860430,-11180.84,0.00031232,2]
[357185527,1743871860440,-500.0,0.00031232,2]
[357185528,1743871860450,-640.66,0.00031232,2]
[357185529,1743871860460,-500.0,0.00031232,2]
[357185530,1743871860471,-5048.56,0.00031232,2]
[357185531,1743871860481,-511.23,0.00031232,2]
[357185532,1743871860491,-617.12,0.00031232,2]
[357185533,1743871860500,-929.13,0.00031232,2]
[357185534,1743871860510,-500.0,0.00031232,2]
[357185535,1743871860520,-2394.43,0.00031232,2]
[357185536,1743871860530,-501.69703881,0.00031232,2]
[357185537,1743871860541,-500.0,0.00031232,2]
[357185538,1743871860551,-500.0,0.00031232,2]
[357185539,1743871860560,-500.0,0.00031232,2]
[357185540,1743871860570,-500.0,0.00031232,2]
[357185541,1743871860580,-500.0,0.00031232,2]
[357185542,1743871860589,-20826.04,0.00031232,2]
[357185543,1743871860598,-1582.99,0.00031232,2]
[357185544,1743871860608,-500.0,0.00031232,2]
[357185545,1743871860617,-492.15897022,0.00031232,2]
[357185546,1743871860627,-217.13231893,0.00031232,2]
[357185547,1743871860637,-6857.23,0.0003148,2]
[357185548,1743871860646,-171.091542,0.00031505,7]
[357185549,1743871860655,-151.0,0.00031505,7]
[357185550,1743871860667,-151.0,0.00031505,7]
[357185551,1743871860676,-151.0,0.00031505,7]
[357185552,1743871860686,-151.0,0.00031505,7]
[357185553,1743871860695,-236.776715,0.00031506,2]
[357185554,1743871860704,-1054.39,0.00031506,2]
[357185555,1743871860714,-529.06812076,0.00031506,2]
[357185556,1743871860724,-500.0,0.00031506,2]
[357185557,1743871860733,-500.0,0.00031506,2]
[357185558,1743871860743,-500.0,0.00031506,2]
[357185559,1743871860753,-500.0,0.00031506,2]
[357185560,1743871860763,-500.0,0.00031506,2]
[357185561,1743871860772,-815.78,0.00031506,2]
[357185562,1743871860783,-500.0,0.00031506,2]
[357185563,1743871860792,-546.4,0.00031506,2]
[357185564,1743871860801,-1733.42,0.00031506,2]
[357185565,1743871860811,-500.0,0.00031506,2]
[357185566,1743871860820,-500.0,0.00031506,2]
[357185567,1743871860830,-500.0,0.00031506,2]
[357185568,1743871860839,-2000.0,0.00031506,2]
[357185569,1743871860848,-500.0,0.00031506,2]
[357185570,1743871860857,-540.73,0.00031506,2]
[357185571,1743871860867,-542.22693529,0.00031506,2]
[357185572,1743871860876,-500.0,0.00031506,2]
[357185573,1743871860886,-1151.97,0.00031506,2]